bitfinex/quotes_ETHUSD_20250328
["timestamp","ask_amount","ask_price","bid_price","bid_amount"]
[1743174223492,5.29896,1887.2,1886.9,7.259376]
[1743174223992,10.59728,1887.3,1887.0,0.05298804]
[1743174224193,10.59686,1887.4,1887.0,5.35230804]
[1743174224361,5.29859,1887.3,1887.0,6.08351444]
[1743174224563,5.29859,1887.3,1887.0,0.7312064]
[1743174225099,5.29861,1887.3,1887.0,6.0305264]
[1743174225270,5.29861,1887.3,1887.0,0.7312064]
[1743174225472,5.29861,1887.3,1887.0,6.0305964]
[1743174226180,5.29832,1887.4,1887.1,5.90216964]
[1743174226361,5.29832,1887.4,1887.1,0.60305964]
[1743174227062,5.2986,1887.3,1887.1,0.60305964]
[1743174227285,5.2986,1887.3,1887.0,0.7312064]
[1743174227912,3.0,1887.3,1886.9,0.818]
[1743174228095,10.59901,1887.0,1886.7,0.8299]
[1743174228269,10.599,1887.0,1886.7,0.8299]
[1743174228590,5.29941,1887.0,1886.7,0.8299]
[1743174228892,5.29979,1886.9,1886.7,0.8299]
[1743174229083,5.29979,1886.9,1886.7,1.44824239]
[1743174229484,5.29979,1886.9,1886.5,5.30055]
[1743174229485,5.30095,1886.5,1886.2,7.07890087]
[1743174229781,11.41777,1886.8,1886.3,5.35428815]
[1743174229973,10.59097,1886.8,1886.3,5.30138]
[1743174230170,5.29997,1886.8,1886.4,5.30094]
[1743174230371,5.29981,1886.9,1886.5,5.35381043]
[1743174230683,5.30009,1886.8,1886.5,1.06546604]
[1743174230888,5.30009,1886.8,1886.5,1.11846709]
[1743174231084,5.29981,1886.9,1886.5,1.06546604]
[1743174231262,5.29915,1887.1,1886.6,6.06883]
[1743174231467,5.29886,1887.2,1886.8,5.29995]
[1743174231668,3.82106291,1887.4,1886.7,0.606883]
[1743174231669,8.71305702,1887.4,1886.9,5.29953]
[1743174231884,8.71305363,1887.4,1886.9,5.29953]
[1743174232167,5.29868,1887.3,1886.9,5.29953]
[1743174232391,10.59747,1887.3,1886.9,5.29953]
[1743174232617,10.59745,1887.3,1886.9,6.359477]
[1743174232970,10.59749,1887.3,1886.9,6.359477]
[1743174233186,8.71296363,1887.4,1886.9,6.359477]
[1743174233380,5.29859,1887.3,1887.0,0.803]
[1743174233783,2.65594363,1887.2,1886.7,1.409883]
[1743174233964,5.29927,1887.1,1886.7,6.710043]
[1743174234167,5.29927,1887.1,1886.7,1.409883]
[1743174234470,5.29945,1887.0,1886.7,0.803]
[1743174235063,5.30101,1886.5,1886.1,0.8286]
[1743174235269,5.3016,1886.3,1886.1,0.8286]
[1743174235571,3.47824363,1886.4,1886.0,6.8874353]
[1743174235787,2.65594363,1886.2,1886.0,6.8874353]
[1743174236468,7.95774363,1886.2,1886.0,6.8874353]
[1743174236796,5.30194,1886.1,1886.0,6.8874353]
[1743174238280,7.95774363,1886.2,1886.0,6.8874353]
[1743174238485,13.25957363,1886.2,1886.0,6.8874353]
[1743174238717,7.95772363,1886.2,1886.0,6.8874353]
[1743174239108,7.95772363,1886.2,1885.8,0.8286]
[1743174239305,5.302,1886.1,1885.8,1.441753]
[1743174239520,7.95823363,1886.0,1885.5,33.4370745]
[1743174239819,2.65594363,1886.0,1885.6,6.09965]
[1743174240931,7.95818363,1886.0,1885.6,6.09965]
[1743174241247,2.65594363,1886.0,1885.6,6.09982]
[1743174241689,2.65594363,1886.0,1885.6,11.40295]
[1743174241889,2.65594363,1886.0,1885.7,1.140295]
[1743174242306,7.95819363,1886.0,1885.7,1.140295]
[1743174242821,2.65594363,1886.0,1885.7,1.140295]
[1743174243206,2.65594363,1886.0,1885.7,6.443275]
[1743174243519,5.30213,1886.1,1885.7,6.443275]
[1743174243725,7.95820363,1886.0,1885.7,1.140295]
[1743174243909,2.65594363,1886.0,1885.7,1.140295]
[1743174244112,7.95820363,1886.0,1885.7,1.140295]
[1743174244504,2.65594363,1885.8,1885.6,0.7965]
[1743174244808,7.95891363,1885.8,1885.5,0.1136845]
[1743174245014,2.65594363,1885.8,1885.5,0.1136845]
[1743174245218,2.65594363,1885.8,1885.5,5.47015326]
[1743174245393,2.65594363,1885.8,1885.5,0.16671326]
[1743174245718,7.95873363,1885.8,1885.5,0.16671326]
[1743174245896,5.3026,1885.9,1885.5,5.47011326]
[1743174246097,2.65594363,1886.1,1885.7,6.07054]
[1743174246297,5.30125,1886.4,1886.0,5.30203]
[1743174246499,5.3017,1886.2,1886.0,0.7676]
[1743174246704,7.95753363,1886.3,1886.0,0.7676]
[1743174246899,7.95734363,1886.3,1886.0,0.7676]
[1743174247102,2.65594363,1886.1,1885.7,0.7827]
[1743174247326,5.31,1886.2,1885.8,5.30261]
[1743174247532,2.65594363,1886.1,1885.8,5.30276]
[1743174247830,7.95800363,1886.1,1885.7,6.08561]
[1743174248040,13.26016363,1886.1,1885.7,6.08561]
[1743174248216,7.95800363,1886.1,1885.7,0.7827]
[1743174248402,13.26130363,1885.9,1885.5,6.2258145]
[1743174248606,7.95857363,1885.9,1885.5,6.2258145]
[1743174248807,13.26126363,1885.9,1885.5,6.2258145]
[1743174249122,7.95857363,1885.9,1885.5,6.2257545]
[1743174249325,5.30263,1885.9,1885.5,0.9222845]
[1743174249543,5.30266,1885.9,1885.6,0.86492743]
[1743174249825,6.09720436,1886.3,1885.8,5.30266]
[1743174250001,8.75314799,1886.3,1885.9,5.30229]
[1743174250624,7.95795363,1886.1,1885.7,6.11166]
[1743174250831,7.95788363,1886.1,1885.8,5.35569006]
[1743174251029,4.32946858,1886.1,1885.8,0.05302006]
[1743174251200,2.65594363,1885.9,1885.7,0.8088]
[1743174252133,2.65594363,1885.9,1885.5,6.2211945]
[1743174252333,2.65594363,1885.9,1885.6,5.30319]
[1743174252922,2.65594363,1885.9,1885.6,5.30321]
[1743174253304,2.65594363,1885.7,1885.5,6.2212045]
[1743174253508,2.65594363,1885.7,1885.5,0.9176845]
[1743174253703,2.65594363,1885.7,1885.5,6.2212845]
[1743174253936,2.65594363,1885.7,1885.5,0.9176845]
[1743174254118,7.95911363,1885.7,1885.5,0.1136845]
[1743174254319,3.45185499,1885.7,1885.5,0.1136845]
[1743174254613,13.26243363,1885.7,1885.5,0.1136845]
[1743174255005,5.30335,1885.6,1885.5,0.1136845]
[1743174255319,6.08755,1885.6,1885.5,0.1136845]
[1743174255640,11.39655,1885.6,1885.5,0.1136845]
[1743174255838,14.39655,1885.6,1885.5,0.1136845]
[1743174256006,16.63211936,1885.6,1885.5,0.1136845]
[1743174256210,6.11895,1885.1,1885.0,413.088703]
[1743174256412,8.77489363,1885.1,1885.0,413.088703]
[1743174256649,2.65594363,1885.1,1885.0,413.088703]
[1743174256848,7.96069363,1885.1,1885.0,413.088703]
[1743174257504,5.30475,1885.1,1885.0,413.088703]
[1743174257708,15.9202,1885.2,1885.0,413.088703]
[1743174258841,15.92024,1885.2,1885.0,413.088703]
[1743174259041,5.30475,1885.1,1885.0,413.088703]
[1743174259239,7.96069363,1885.1,1885.0,413.088703]
[1743174259761,5.311,1885.2,1885.0,413.088703]
[1743174260252,10.61551,1885.2,1885.0,413.088703]
[1743174260758,5.311,1885.2,1885.0,413.088703]
[1743174261211,10.61557,1885.2,1885.0,413.088703]
[1743174261640,5.30457,1885.2,1885.0,413.088703]
[1743174261841,6.51415452,1885.3,1885.0,413.088703]
[1743174262139,5.69555452,1885.3,1885.0,413.088703]
[1743174262642,7.95987363,1885.4,1885.0,413.088703]
[1743174262843,5.30393,1885.4,1885.0,413.088703]
[1743174263146,7.89151638,1885.6,1885.0,413.088703]
[1743174263147,10.60693,1885.6,1885.1,5.30463]
[1743174263358,10.60693,1885.6,1885.0,418.393733]
[1743174263359,5.30364,1885.5,1885.0,418.393733]
[1743174263748,13.26343363,1885.5,1885.0,418.393733]
[1743174263943,5.30364,1885.5,1885.0,418.393733]
[1743174264146,5.30364,1885.5,1885.1,0.05303999]
[1743174264325,5.30337,1885.6,1885.1,5.30455]
[1743174264531,5.30337,1885.6,1885.3,0.8147]
[1743174265055,5.30337,1885.6,1885.2,0.530455]
[1743174265056,5.30372,1885.5,1885.1,0.7711]
[1743174265255,10.60757,1885.5,1885.1,0.7711]
[1743174265461,2.65594363,1885.6,1885.1,0.7711]
[1743174265462,5.30402,1885.4,1885.1,0.7711]
[1743174265754,7.95931363,1885.6,1885.1,0.8241403]
[1743174265958,5.69735303,1885.7,1885.2,5.30446]
[1743174266160,2.65594363,1885.6,1885.2,1.13802]
[1743174266455,2.65594363,1885.6,1885.1,0.7711]
[1743174266456,5.30366,1885.5,1885.1,0.7711]
[1743174266657,7.95933363,1885.6,1885.1,6.07582]
[1743174266831,5.30366,1885.5,1885.1,6.07582]
[1743174267354,5.30366,1885.5,1885.1,0.7711]
[1743174268157,2.65594363,1885.6,1885.1,0.7711]
[1743174268462,5.30423,1885.3,1885.0,413.088703]
[1743174269633,10.60862,1885.3,1885.0,413.088703]
[1743174269833,5.30423,1885.3,1885.0,413.088703]
[1743174270034,5.30407,1885.4,1885.0,413.088703]
[1743174270330,5.30422,1885.3,1885.0,413.088703]
[1743174271232,7.95986363,1885.4,1885.0,413.088703]
[1743174271430,5.30425,1885.3,1885.0,413.088703]
[1743174272465,5.30458,1885.2,1885.0,413.088703]
[1743174273639,5.30475,1885.1,1885.0,413.088703]
[1743174274840,7.96069363,1885.1,1885.0,413.088703]
[1743174275837,6.30563624,1885.4,1885.0,413.088703]
[1743174276170,0.7953,1885.5,1885.1,6.17989745]
[1743174276357,5.30428,1885.3,1885.1,0.8222]
[1743174276944,7.96022363,1885.3,1885.0,413.088703]
[1743174277351,10.60802,1885.4,1885.0,413.088703]
[1743174277755,5.30396,1885.4,1885.0,413.088703]
[1743174278354,3.45124363,1885.5,1885.0,413.088703]
[1743174278650,10.60823,1885.4,1885.0,413.088703]
[1743174278846,7.97218854,1885.3,1885.0,413.088703]
[1743174279479,2.66796854,1885.1,1885.0,413.088703]
[1743174279777,7.97218854,1885.3,1885.0,413.088703]
[1743174279965,2.66796854,1885.3,1885.0,413.088703]
[1743174281156,7.97191854,1885.4,1885.0,413.088703]
[1743174281362,5.30395,1885.4,1885.0,418.393683]
[1743174281551,7.97222854,1885.3,1885.0,413.088703]
[1743174281953,2.66796854,1885.3,1885.0,413.088703]
[1743174282153,7.97217854,1885.3,1885.0,413.088703]
[1743174282456,5.30421,1885.3,1885.0,413.088703]
[1743174282774,7.97196854,1885.4,1885.0,413.088703]
[1743174282947,5.304,1885.4,1885.0,413.088703]
[1743174283143,6.46655303,1885.7,1885.2,5.30425]
[1743174283349,2.66796854,1885.8,1885.3,0.8369396]
[1743174283550,3.39e-06,1885.9,1885.4,5.30364]
[1743174283756,7.97019854,1886.0,1885.6,0.7776]
[1743174283975,2.66796854,1885.8,1885.6,0.7776]
[1743174285678,7.97019854,1886.0,1885.6,0.83062725]
[1743174285880,7.97019854,1886.0,1885.6,0.83062638]
[1743174286052,7.97019854,1886.0,1885.6,0.7776]
[1743174286253,2.66796854,1886.0,1885.6,1.49176888]
[1743174286598,10.96934854,1886.3,1885.8,0.8296]
[1743174286765,7.96992854,1886.1,1885.8,0.8296]
[1743174286945,2.66796854,1886.1,1885.8,0.8296]
[1743174287150,7.96977854,1886.2,1885.8,0.8296]
[1743174287347,5.257,1886.4,1885.8,0.8296]
[1743174287348,0.4052481,1886.4,1885.8,0.8296]
[1743174287548,8.76668854,1886.5,1885.9,5.30239]
[1743174287848,14.06770854,1886.5,1886.1,0.7649]
[1743174288083,5.30092,1886.5,1886.1,0.81791268]
[1743174288488,7.96850854,1886.6,1886.1,6.11984268]
[1743174288982,13.26915854,1886.6,1886.1,6.11984268]
[1743174289484,7.96850854,1886.6,1886.1,6.06683]
[1743174289781,5.30054,1886.6,1886.2,5.30164]
[1743174289956,7.96850854,1886.6,1886.1,6.7264069]
[1743174290155,7.96850854,1886.6,1886.1,12.0281969]
[1743174290355,2.66796854,1886.6,1886.2,5.30164]
[1743174290950,10.54935,1886.7,1886.3,5.30131]
[1743174291153,5.249,1886.7,1886.3,6.361605]
[1743174291465,2.66796854,1887.0,1886.5,5.30055]
[1743174291663,2.66796854,1886.9,1886.5,5.30055]
[1743174291983,5.29981,1886.9,1886.4,11.38967]
[1743174292155,2.66796854,1886.9,1886.5,5.30078]
[1743174292479,10.54448,1887.0,1886.5,1.138936]
[1743174292690,10.54448,1887.0,1886.4,0.7877]
[1743174292691,7.96804854,1886.8,1886.4,0.7877]
[1743174293200,10.54444,1887.0,1886.5,0.05300265]
[1743174293367,7.96740854,1887.0,1886.7,0.7842]
[1743174293567,2.66796854,1887.0,1886.7,0.7842]
[1743174293780,7.96770854,1886.9,1886.7,0.7842]
[1743174293986,7.96770854,1886.9,1886.5,0.7842]
[1743174293987,2.66796854,1886.8,1886.5,0.7842]
[1743174294606,5.29974,1886.9,1886.5,0.7842]
[1743174294784,7.96794854,1886.8,1886.5,0.7842]
[1743174294992,2.66796854,1886.8,1886.5,0.7842]
[1743174295480,8.76491939,1886.8,1886.5,0.7842]
[1743174295786,2.66796854,1886.6,1886.5,0.7842]
[1743174295985,2.66796854,1886.8,1886.5,0.7842]
[1743174297273,2.66796854,1886.8,1886.5,6.1379302]
[1743174297469,7.96738854,1887.0,1886.5,6.08475]
[1743174297805,2.66796854,1886.8,1886.5,6.08475]
[1743174298359,14.70627096,1887.0,1886.5,6.08475]
[1743174298555,14.70627096,1887.0,1886.5,6.13774966]
[1743174298760,14.70626096,1887.0,1886.5,6.08475]
[1743174298994,8.29927,1887.1,1886.6,10.60077]
[1743174299193,8.29927,1887.1,1886.6,10.60078]
[1743174299497,8.29927,1887.1,1886.5,0.7842]
[1743174299498,5.29913,1887.1,1886.5,0.7842]
[1743174299657,2.66796854,1887.2,1886.6,5.30042]
[1743174299658,5.29951,1887.0,1886.6,5.30042]
[1743174299858,8.29922,1887.1,1886.6,5.30042]
[1743174300064,10.59904,1887.0,1886.5,6.08494]
[1743174300377,5.29942,1887.0,1886.5,11.38558]
[1743174300588,10.59975,1886.9,1886.5,0.7842]
[1743174300987,5.29984,1886.9,1886.5,0.7842]
[1743174301189,0.78100955,1887.1,1886.6,0.05299915]
[1743174301400,5.29884,1887.3,1886.9,5.29952]
[1743174301695,5.29884,1887.3,1886.8,5.29971]
[1743174301696,13.79544254,1887.3,1886.8,5.29971]
[1743174302062,5.29926,1887.1,1886.7,0.7533]
[1743174302267,7.96722854,1887.1,1886.7,6.05354]
[1743174302467,5.29885,1887.2,1886.8,5.29988]
[1743174302797,5.29885,1887.2,1886.7,0.7533]
[1743174302798,2.66796854,1887.2,1886.7,0.7533]
[1743174302973,0.92401707,1887.3,1886.7,0.7533]
[1743174302974,13.53341539,1887.1,1886.7,0.7533]
[1743174303476,8.23408539,1887.1,1886.7,0.7533]
[1743174303680,14.30066539,1887.1,1886.7,0.7533]
[1743174304005,5.29895,1887.2,1886.8,5.29988]
[1743174304598,10.59808,1887.2,1886.7,6.05342]
[1743174305297,5.29913,1887.1,1886.7,6.05342]
[1743174305494,8.89066561,1887.3,1886.8,5.29982]
[1743174305718,0.529884,1887.3,1886.9,5.35265108]
[1743174305921,6.0471,1887.6,1887.0,8.78765854]
[1743174306123,5.29803,1887.5,1887.0,6.11944]
[1743174306569,8.71506854,1887.6,1887.0,6.11944]
[1743174306570,8.79084854,1887.6,1887.1,10.65103407]
[1743174306777,11.79082854,1887.6,1887.0,6.11967]
[1743174307000,5.29811,1887.5,1887.1,5.29913]
[1743174307513,5.29835,1887.4,1887.0,6.731637]
[1743174307698,5.29804,1887.5,1887.0,6.731577]
[1743174308005,5.29804,1887.5,1887.1,5.29912]
[1743174308206,5.2972,1887.8,1887.3,5.29843]
[1743174308393,5.2972,1887.8,1887.4,5.29826]
[1743174309185,5.2972,1887.8,1887.5,0.05297431]
[1743174309709,5.2972,1887.8,1887.3,0.607173]
[1743174309710,5.29747,1887.7,1887.3,0.607173]
[1743174309910,5.29773,1887.6,1887.2,0.7733]
[1743174310206,5.29845,1887.4,1887.0,6.07821]
[1743174310419,0.7769,1887.6,1887.1,2.66796854]
[1743174310626,5.29828,1887.5,1887.2,0.05297798]
[1743174310776,10.59648,1887.5,1887.1,5.29911]
[1743174311089,5.29832,1887.4,1887.1,0.05298065]
[1743174311289,5.2982,1887.5,1887.1,5.35199065]
[1743174311684,5.29776,1887.6,1887.1,5.35199065]
[1743174311910,5.29832,1887.4,1887.1,0.05298065]
[1743174312118,5.29909,1887.2,1886.7,6.0534]
[1743174312330,5.2986,1887.3,1886.8,5.3527541]
[1743174312495,10.59735,1887.3,1886.8,5.3527541]
[1743174312812,5.2986,1887.3,1886.9,5.29967]
[1743174313232,5.2986,1887.3,1886.9,5.35253955]
[1743174313430,5.2986,1887.3,1886.9,0.05298955]
[1743174313633,5.2986,1887.3,1886.8,5.29987]
[1743174313634,5.29898,1887.2,1886.8,10.59972]
[1743174313933,10.59728,1887.3,1886.8,11.735012]
[1743174314233,5.29887,1887.2,1886.8,6.435142]
[1743174314423,5.29887,1887.2,1886.8,11.734972]
[1743174314633,5.29887,1887.2,1886.8,6.435122]
[1743174315223,10.5979,1887.2,1886.8,6.435122]
[1743174315426,10.59795,1887.2,1886.8,6.435122]
[1743174315614,3.0,1887.1,1886.7,0.7532]
[1743174315813,5.29997,1886.8,1886.5,0.86629669]
[1743174316030,5.29997,1886.8,1886.5,0.8133]
[1743174316213,5.29997,1886.8,1886.5,1.954815]
[1743174316415,5.30067,1886.6,1886.3,0.8133]
[1743174316813,5.30029,1886.7,1886.3,6.11464]
[1743174317017,5.30029,1886.7,1886.3,6.11454]
[1743174317338,5.30029,1886.7,1886.3,11.41578]
[1743174317534,5.30029,1886.7,1886.3,6.11451]
[1743174317736,5.30029,1886.7,1886.3,6.725961]
[1743174318047,7.96794854,1886.8,1886.4,5.301]
[1743174318406,13.26810854,1886.8,1886.4,5.301]
[1743174318722,5.30042,1886.7,1886.3,0.8133]
[1743174318911,3.46696854,1886.6,1886.1,0.7957]
[1743174319115,3.46696854,1886.6,1886.0,1.04267667]
[1743174319116,5.3015,1886.3,1886.0,1.04267667]
[1743174319311,5.3015,1886.3,1885.9,6.15110396]
[1743174319643,5.30217,1886.1,1885.9,0.7957]
[1743174319804,7.97041854,1886.0,1885.7,0.7957]
[1743174320010,7.97022854,1886.0,1885.7,0.7957]
[1743174320208,5.30226,1886.0,1885.7,0.7957]
[1743174320434,10.60469,1886.0,1885.7,0.7957]
[1743174320639,5.30289,1885.8,1885.5,0.7897]
[1743174320939,10.60586,1885.8,1885.3,11.39823]
[1743174321235,5.30325,1885.7,1885.3,6.09405]
[1743174321441,3.42382493,1885.8,1885.3,0.79]
[1743174321736,5.30362,1885.6,1885.1,12.47386923]
[1743174322040,5.30362,1885.6,1885.1,11.39912]
[1743174322545,5.30362,1885.6,1885.2,5.30445]
[1743174322707,5.30355,1885.6,1885.2,5.30445]
[1743174323104,5.30386,1885.5,1885.1,0.79]
[1743174323339,5.30401,1885.4,1885.0,413.088703]
[1743174323503,5.3043,1885.3,1885.0,413.088703]
[1743174324015,5.30395,1885.4,1885.0,418.393613]
[1743174324230,13.53168,1885.5,1885.0,418.393613]
[1743174324539,3.39e-06,1885.7,1885.3,5.30398]
[1743174324713,3.0,1885.8,1885.4,6.17239449]
[1743174325121,3.0,1885.8,1885.5,5.30359]
[1743174325332,3.0,1885.8,1885.4,12.57081545]
[1743174325514,6.06457,1886.0,1885.6,5.30328]
[1743174325713,6.06457,1886.0,1885.5,10.60714]
[1743174325913,6.06457,1886.0,1885.6,5.3033]
[1743174326123,6.06457,1886.0,1885.5,5.30351]
[1743174326338,3.42062493,1886.0,1885.4,0.8157]
[1743174326537,5.30155339,1886.3,1885.8,5.30277]
[1743174326721,10.60315339,1886.3,1885.8,6.05876]
[1743174327036,5.30169,1886.2,1885.7,5.30306]
[1743174327638,0.8189,1886.1,1885.6,0.8078]
[1743174327841,5.30281,1885.8,1885.4,6.1116]
[1743174328011,5.833351,1885.7,1885.4,0.8078]
[1743174328211,5.30287,1885.8,1885.4,6.1117]
[1743174328457,5.30254,1885.9,1885.5,5.30362]
[1743174330038,10.60527,1885.9,1885.4,6.1117]
[1743174330240,5.30282,1885.8,1885.4,6.11155]
[1743174330417,5.30282,1885.8,1885.4,6.11168]
[1743174330611,13.60522,1885.9,1885.4,11.41544]
[1743174330811,15.494842,1885.9,1885.4,11.41544]
[1743174331042,15.494842,1885.9,1885.4,6.11156]
[1743174331610,5.3028,1885.8,1885.4,6.11156]
[1743174331849,15.494832,1885.9,1885.4,11.41524]
[1743174332050,10.192142,1885.9,1885.4,6.11148]
[1743174332337,0.8189,1886.1,1885.4,1.418948]
[1743174332553,0.8189,1886.1,1885.6,5.30324]
[1743174332554,14.40686,1886.1,1885.6,5.30324]
[1743174332751,14.40686,1886.1,1885.7,5.30292]
[1743174332957,14.40686,1886.1,1885.7,10.60582]
[1743174333313,14.40686,1886.1,1885.7,5.3029]
[1743174333516,5.30227,1886.0,1885.6,5.30333]
[1743174333742,5.3026,1885.9,1885.5,5.30353]
[1743174333963,0.8097,1885.7,1885.3,5.30406]
[1743174334272,6.11279,1885.7,1885.3,5.30406]
[1743174334617,0.8097,1885.7,1885.4,5.30382]
[1743174335054,0.8097,1885.7,1885.4,5.30379]
[1743174335339,6.11285,1885.7,1885.3,5.30418]
[1743174335563,6.11279,1885.7,1885.2,6.13403]
[1743174335864,5.30378,1885.5,1885.2,0.8296]
[1743174336074,12.69259896,1885.7,1885.2,5.30438]
[1743174336219,7.38952896,1885.7,1885.2,5.30438]
[1743174336413,5.30344,1885.6,1885.2,5.30438]
[1743174336652,5.30344,1885.6,1885.2,5.30434]
[1743174336857,12.69263896,1885.7,1885.3,5.30418]
[1743174337185,5.30398,1885.4,1885.0,413.912903]
[1743174337443,5.30398,1885.4,1885.0,419.217823]
[1743174338625,5.3042,1885.3,1885.0,413.912903]
[1743174338834,5.30398,1885.4,1885.0,419.217703]
[1743174339761,5.30398,1885.4,1885.0,413.912903]
[1743174339922,5.30398,1885.4,1885.0,419.217823]
[1743174340447,5.30398,1885.4,1885.0,419.217813]
[1743174341227,10.60808,1885.4,1885.0,419.217813]
[1743174341429,5.30475,1885.1,1885.0,413.088703]
[1743174341632,6.06685,1885.1,1885.0,413.088703]
[1743174341832,0.7621,1885.1,1885.0,413.088703]
[1743174342148,6.06685,1885.1,1885.0,413.088703]
[1743174342922,5.30475,1885.1,1885.0,413.088703]
[1743174343248,5.30423,1885.3,1885.0,413.088703]
[1743174343419,10.57166339,1885.5,1885.1,6.18528545]
[1743174343624,10.57174339,1885.5,1885.1,6.13224]
[1743174344147,13.24009195,1885.5,1885.1,6.13224]
[1743174344349,5.3046,1885.2,1885.0,413.088703]
[1743174344519,7.97294856,1885.2,1885.0,413.088703]
[1743174344720,5.3046,1885.2,1885.0,413.088703]
[1743174344931,13.27692856,1885.3,1885.0,413.088703]
[1743174345128,5.30421,1885.3,1885.0,413.088703]
[1743174345365,5.30365339,1885.5,1885.0,418.393703]
[1743174345667,5.30365339,1885.5,1885.1,5.30454]
[1743174345668,5.30392,1885.4,1885.1,5.30454]
[1743174346030,8.30304,1885.8,1885.4,5.30391]
[1743174346273,2.66834856,1885.7,1885.3,0.7627]
[1743174346420,7.97172856,1885.6,1885.3,0.7627]
[1743174346624,2.66834856,1885.6,1885.3,1.369415]
[1743174346926,7.97171856,1885.6,1885.3,0.606715]
[1743174347298,2.66834856,1885.5,1885.2,5.30444]
[1743174347480,8.75192856,1885.7,1885.3,5.30419]
[1743174348062,8.75192856,1885.7,1885.3,10.60821]
[1743174348255,0.39317795,1885.7,1885.2,5.30444]
[1743174348458,7.97151856,1885.7,1885.3,10.60818]
[1743174348659,7.97151856,1885.7,1885.4,1.060818]
[1743174349274,2.66834856,1885.7,1885.4,1.060818]
[1743174349470,2.66834856,1885.7,1885.4,5.30389]
[1743174349813,3.0,1886.0,1885.6,5.30315]
[1743174350096,2.66834856,1886.1,1885.8,5.30266]
[1743174350467,4.08075974,1886.3,1885.9,5.3023]
[1743174350680,4.08075974,1886.3,1886.1,5.30181]
[1743174350885,4.08075974,1886.3,1886.0,5.88545988]
[1743174351057,5.27665797,1886.3,1886.0,5.88545988]
[1743174351260,5.27665797,1886.3,1886.0,5.83244]
[1743174351581,5.27665797,1886.3,1886.0,0.53023]
[1743174351582,4.12454501,1886.3,1886.0,0.53023]
[1743174351902,7.96975856,1886.3,1885.9,6.08439]
[1743174352370,7.96975856,1886.3,1885.9,11.38673]
[1743174352569,7.96975856,1886.3,1885.9,11.38675]
[1743174352781,2.66834856,1886.1,1885.9,0.7821]
[1743174352993,7.95849983,1886.4,1886.0,5.30222]
[1743174353158,2.65737983,1886.4,1886.1,5.3018]
[1743174354300,8.35522853,1886.4,1886.0,6.440799]
[1743174354488,8.35522853,1886.4,1886.0,5.30214]
[1743174355002,6.11882,1886.3,1885.9,0.7821]
[1743174355169,6.11882,1886.3,1885.9,5.30249]
[1743174355366,6.11882,1886.3,1885.8,10.60535]
[1743174355569,2.65737983,1886.0,1885.5,0.8294]
[1743174355804,7.96031983,1885.8,1885.4,5.30373]
[1743174356298,7.96031983,1885.8,1885.4,5.30372]
[1743174356503,7.96031983,1885.8,1885.4,10.60746]
[1743174356687,8.35236573,1885.8,1885.4,10.60746]
[1743174356887,3.04942573,1885.8,1885.5,5.30353]
[1743174357609,0.3920459,1885.8,1885.5,5.30353]
[1743174357899,6.06273,1885.9,1885.5,10.60696]
[1743174358200,6.06273,1885.9,1885.5,5.30343]
[1743174358360,7.99116398,1885.9,1885.5,10.6069]
[1743174358561,7.95966983,1886.0,1885.6,6.13621]
[1743174358869,10.55698,1886.1,1885.6,11.43948]
[1743174359194,5.30255,1885.9,1885.6,0.8329]
[1743174359355,7.95960983,1886.0,1885.6,6.1362]
[1743174360185,5.3026,1885.9,1885.5,5.30362]
[1743174360486,8.77698983,1885.8,1885.4,6.09627]
[1743174360789,8.77698983,1885.8,1885.4,11.40003]
[1743174360964,8.77698983,1885.8,1885.4,0.7924]
[1743174361158,8.77705983,1885.8,1885.4,11.40006]
[1743174361354,0.8168,1885.8,1885.5,5.30345]
[1743174361787,0.8168,1885.8,1885.4,6.09628]
[1743174361986,6.11975,1885.8,1885.4,11.40003]
[1743174362191,6.11975,1885.8,1885.4,12.540033]
[1743174362398,6.11975,1885.8,1885.4,7.236153]
[1743174362597,3.47417983,1885.8,1885.4,0.7924]
[1743174362808,5.30394,1885.4,1885.0,413.088703]
[1743174362973,10.6087,1885.3,1885.0,413.088703]
[1743174363295,5.30448,1885.2,1885.0,413.088703]
[1743174363506,2.65737983,1885.4,1885.0,418.393683]
[1743174363670,11.41157,1885.5,1885.1,5.30447]
[1743174363871,2.65737983,1885.4,1885.0,413.088703]
[1743174364067,10.60861,1885.3,1885.0,413.088703]
[1743174364276,5.3046,1885.2,1885.0,413.088703]
[1743174364481,9.06615,1885.1,1885.0,413.088703]
[1743174364764,11.29536298,1885.1,1885.0,413.088703]
[1743174366199,14.32915,1885.1,1885.0,413.088703]
[1743174366765,14.87275,1885.1,1885.0,383.822743]
[1743174366967,14.87275,1885.1,1885.0,357.255883]
[1743174367377,14.87275,1885.1,1885.0,70.46179736]
[1743174367378,45.57613322,1885.1,1885.0,70.46179736]
[1743174367611,45.57613322,1885.1,1885.0,62.97090307]
[1743174367788,43.11875339,1885.1,1885.0,58.98436164]
[1743174367986,5.30602,1884.7,1884.1,0.05]
[1743174368188,2.65737983,1884.3,1884.1,0.05]
[1743174368609,0.7617,1884.2,1884.1,0.05]
[1743174368811,6.0317,1884.2,1884.1,0.05]
[1743174370421,9.0317,1884.2,1884.1,0.05]
[1743174370602,9.5817,1884.2,1884.1,0.05]
[1743174371210,9.5845,1884.2,1884.1,0.05]
[1743174372127,9.58450339,1884.2,1884.1,0.05]
[1743174373221,9.44513216,1884.2,1884.1,0.05]
[1743174373425,9.99513216,1884.2,1884.1,0.05]
[1743174374725,0.55,1884.0,1883.6,0.1136845]
[1743174374887,3.0,1883.8,1883.6,0.1136845]
[1743174375227,8.282,1883.7,1883.6,0.1136845]
[1743174378426,8.68288792,1883.7,1883.6,0.1136845]
[1743174379750,11.34026775,1883.7,1883.6,0.1136845]
[1743174380050,12.71536775,1883.7,1883.6,0.1136845]
[1743174380190,9.50798792,1883.7,1883.6,0.1136845]
[1743174382361,0.55,1883.3,1882.6,5.31171]
[1743174382562,0.7525,1883.4,1882.7,5.842581]